bitfinex/quotes_SOLUSD_20240909
["timestamp","ask_amount","ask_price","bid_price","bid_amount"]
[1725883694354,45.0,129.85,129.77,33.72964011]
[1725883695835,45.0,129.85,129.79,13.72964011]
[1725883699103,95.0,129.85,129.77,20.0]
[1725883699367,101.4823,129.85,129.77,20.0]
[1725883699541,15.1842,129.86,129.77,33.72964011]
[1725883699744,15.1842,129.86,129.79,13.72964011]
[1725883701365,45.0,129.85,129.79,13.72964011]
[1725883705973,45.0,129.85,129.77,33.72964011]
[1725883708252,45.0,129.85,129.79,13.72964011]
[1725883710379,45.0,129.85,129.77,20.0]
[1725883710380,45.0,129.85,129.77,33.72964011]
[1725883713969,45.0,129.85,129.79,13.72964011]
[1725883716681,15.1842,129.86,129.77,22.47249052]
[1725883716884,15.1842,129.86,129.78,13.72964011]
[1725883717885,45.0,129.85,129.78,13.72964011]
[1725883719661,45.0,129.85,129.77,20.0]
[1725883719861,45.0,129.85,129.78,13.72964011]
[1725883720076,45.0,129.85,129.78,16.20214157]
[1725883720290,45.0,129.85,129.78,13.72964011]
[1725883724664,45.0,129.85,129.77,20.0]
[1725883724665,95.0,129.85,129.77,20.0]
[1725883724888,95.0,129.85,129.76,13.72964011]
[1725883725066,15.2998,129.84,129.77,20.0]
[1725883725382,45.0,129.83,129.77,20.0]
[1725883725583,45.0,129.83,129.78,2.47267191]
[1725883725963,45.0,129.83,129.77,20.0]
[1725883729568,45.0,129.83,129.78,13.72964011]
[1725883743204,45.0,129.83,129.65,1.34243286]
[1725883743205,15.5882,129.82,129.7,11.6095]
[1725883743497,45.0,129.81,129.74,13.72964011]
[1725883743686,45.0,129.81,129.75,2.47286046]
[1725883743879,45.0,129.81,129.74,13.72964011]
[1725883743880,45.0,129.81,129.76,2.47286046]
[1725883744079,45.0,129.81,129.74,13.72964011]
[1725883744314,45.0,129.81,129.75,2.47284786]
[1725883744604,45.0,129.81,129.76,16.20248797]
[1725883744776,45.0,129.81,129.76,13.72964011]
[1725883746503,45.0,129.81,129.75,13.72964011]
[1725883746687,45.0,129.81,129.76,2.47295007]
[1725883746891,45.0,129.81,129.75,13.72964011]
[1725883747297,45.0,129.81,129.76,2.47293875]
[1725883747610,45.0,129.81,129.74,13.72964011]
[1725883747790,45.0,129.81,129.75,22.47297242]
[1725883747992,45.0,129.81,129.75,20.0]
[1725883749795,45.0,129.81,129.71,7.13389941]
[1725883749796,22.9621,129.8,129.71,7.13389941]
[1725883749999,6.2784,129.77,129.72,2.47312144]
[1725883750308,6.2784,129.77,129.67,7.13389941]
[1725883750309,6.2784,129.77,129.69,13.72964011]
[1725883750514,60.1009,129.76,129.65,6.5356]
[1725883750688,60.1009,129.76,129.68,13.72964011]
[1725883751016,60.1009,129.76,129.64,7.13389941]
[1725883751017,22.1401,129.74,129.66,13.72964011]
[1725883751197,22.1401,129.74,129.64,7.13389941]
[1725883751406,45.0,129.73,129.65,13.72964011]
[1725883752807,45.0,129.73,129.66,20.0]
[1725883753593,45.0,129.73,129.67,13.72964011]
[1725883754610,45.0,129.73,129.68,4.31337627]
[1725883754812,45.0,129.73,129.69,4.31337627]
[1725883755004,45.0,129.73,129.7,4.31337627]
[1725883755313,45.0,129.73,129.67,13.72964011]
[1725883755486,45.0,129.73,129.68,4.31337651]
[1725883755689,45.0,129.73,129.69,4.31337651]
[1725883755914,45.0,129.73,129.7,4.31337651]
[1725883756129,45.0,129.73,129.67,13.72964011]
[1725883756289,45.0,129.73,129.68,4.31337651]
[1725883756494,45.0,129.73,129.67,13.72964011]
[1725883756704,45.0,129.73,129.69,4.31337577]
[1725883756885,45.0,129.73,129.67,13.72964011]
[1725883757095,45.0,129.73,129.68,4.31337651]
[1725883757309,45.0,129.73,129.69,4.31337651]
[1725883757525,45.0,129.73,129.67,13.72964011]
[1725883757693,45.0,129.73,129.68,4.31335699]
[1725883757896,45.0,129.73,129.69,4.31335699]
[1725883758098,45.0,129.73,129.67,13.72964011]
[1725883758297,45.0,129.73,129.68,4.31338541]
[1725883758596,45.0,129.73,129.69,4.31338541]
[1725883758811,45.0,129.73,129.67,13.72964011]
[1725883759094,45.0,129.73,129.68,4.31337651]
[1725883759302,45.0,129.73,129.69,4.31337651]
[1725883759527,45.0,129.73,129.67,13.72964011]
[1725883759687,45.0,129.73,129.68,4.31337651]
[1725883759892,45.0,129.73,129.69,4.31337651]
[1725883760104,45.0,129.73,129.67,13.72964011]
[1725883767501,15.6198,129.72,129.67,13.72964011]
[1725883767725,45.0,129.71,129.67,13.72964011]
[1725883773105,15.6198,129.72,129.67,13.72964011]
[1725883773304,15.6198,129.72,129.69,13.72964011]
[1725883775914,15.6198,129.72,129.63,12.4575476]
[1725883776096,15.6198,129.72,129.64,65.0]
[1725883776296,15.6198,129.72,129.69,13.72964011]
[1725883782531,15.6198,129.72,129.71,13.72964011]
[1725883782708,88.40855462,129.79,129.71,13.72964011]
[1725883782709,15.1297,129.77,129.71,13.72964011]
[1725883782903,15.1297,129.77,129.73,13.72964011]
[1725883783519,15.1297,129.77,129.66,6.2954]
[1725883783520,15.1297,129.77,129.71,13.72964011]
[1725883784641,45.0,129.76,129.71,13.72964011]
[1725883789251,45.0,129.76,129.66,6.2954]
[1725883789541,45.0,129.76,129.67,20.0]
[1725883789719,45.0,129.76,129.7,13.72964011]
[1725883795649,45.0,129.76,129.69,13.72964011]
[1725883796028,16.4718,129.75,129.69,13.72964011]
[1725883796224,45.0,129.74,129.69,13.72964011]
[1725883796439,51.0093,129.74,129.67,13.72964011]
[1725883796838,15.1708,129.73,129.63,7.98194701]
[1725883797044,45.0,129.72,129.65,13.72964011]
[1725883799345,15.1708,129.71,129.65,13.72964011]
[1725883799528,45.0,129.7,129.65,13.72964011]
[1725883800255,45.0,129.7,129.67,13.72964011]
[1725883802863,15.1708,129.71,129.67,13.72964011]
[1725883805751,45.0,129.7,129.65,13.72964011]
[1725883806652,15.1708,129.71,129.67,13.72964011]
[1725883807879,45.0,129.7,129.67,13.72964011]
[1725883808051,15.1708,129.71,129.67,13.72964011]
[1725883815850,6.0093,129.74,129.69,13.72964011]
[1725883816868,15.9973,129.75,129.69,13.72964011]
[1725883819374,6.4826,129.77,129.73,13.72964011]
[1725883819576,15.6031,129.78,129.73,13.72964011]
[1725883820378,15.6031,129.78,129.74,4.31139598]
[1725883820580,15.6031,129.78,129.75,4.31139598]
[1725883820756,15.6031,129.78,129.76,4.31139598]
[1725883820958,15.6031,129.78,129.73,13.72964011]
[1725883823781,45.0,129.77,129.71,13.72964011]
[1725883826253,15.6031,129.78,129.73,13.72964011]
[1725883835298,37.06515441,129.79,129.73,13.72964011]
[1725883836490,45.0,129.78,129.73,13.72964011]
[1725883840297,37.06515441,129.79,129.73,13.72964011]
[1725883842292,45.0,129.78,129.73,13.72964011]
[1725883853404,45.0,129.78,129.69,18.0896]
[1725883853586,45.0,129.78,129.7,20.0]
[1725883853786,16.3008,129.77,129.7,20.0]
[1725883854007,45.0,129.76,129.66,11.6095]
[1725883854319,65.0,129.76,129.66,25.33914011]
[1725883855083,50.0,129.75,129.66,25.33914011]
[1725883855401,16.4446,129.73,129.66,13.72964011]
[1725883855603,45.0,129.72,129.66,13.72964011]
[1725883859704,52.709,129.72,129.63,12.4575476]
[1725883859885,45.0,129.72,129.64,20.0]
[1725883860308,45.0,129.72,129.65,13.72964011]
[1725883866604,45.0,129.72,129.67,13.72964011]
[1725883867000,16.4446,129.73,129.67,13.72964011]
[1725883868613,45.0,129.72,129.67,13.72964011]
[1725883873119,45.0,129.72,129.66,13.72964011]
[1725883878107,45.0,129.72,129.68,13.72964011]
[1725883880603,45.0,129.72,129.67,13.72964011]
[1725883881231,45.0,129.72,129.68,4.31360601]
[1725883881527,45.0,129.72,129.69,4.31360601]
[1725883881727,45.0,129.72,129.67,13.72964011]
[1725883881932,45.0,129.72,129.68,4.31360601]
[1725883882114,45.0,129.72,129.69,4.31360601]
[1725883882300,45.0,129.72,129.67,13.72964011]
[1725883882506,45.0,129.72,129.68,4.31360601]
[1725883882701,45.0,129.72,129.69,4.31360601]
[1725883882923,45.0,129.72,129.67,13.72964011]
[1725883883518,45.0,129.72,129.68,4.31360601]
[1725883883701,45.0,129.72,129.69,4.31357683]
[1725883883905,45.0,129.72,129.67,13.72964011]
[1725883884425,45.0,129.72,129.65,13.72964011]
[1725883884625,45.0,129.72,129.67,13.72964011]
[1725883890311,45.0,129.72,129.66,20.0]
[1725883890636,45.0,129.72,129.66,16.20378968]
[1725883890837,45.0,129.72,129.66,13.72964011]
[1725883891015,45.0,129.72,129.67,20.0]
[1725883892213,45.0,129.72,129.67,22.47414957]
[1725883893014,45.0,129.72,129.67,20.0]
[1725883893213,45.0,129.72,129.66,13.72964011]
[1725883893414,45.0,129.72,129.67,20.0]
[1725883894024,45.0,129.72,129.67,22.47416139]
[1725883895238,45.0,129.72,129.67,20.0]
[1725883896039,45.0,129.72,129.68,2.47411605]
[1725883896845,45.0,129.72,129.68,2.47411575]
[1725883897234,45.0,129.72,129.67,20.0]
[1725883897418,45.0,129.72,129.68,2.47411575]
[1725883897620,45.0,129.72,129.67,20.0]
[1725883897819,45.0,129.72,129.68,2.47407041]
[1725883898034,45.0,129.72,129.67,20.0]
[1725883898239,45.0,129.72,129.68,2.47407071]
[1725883898421,45.0,129.72,129.69,2.47407071]
[1725883898622,45.0,129.72,129.67,20.0]
[1725883898820,45.0,129.72,129.68,2.47407012]
[1725883899021,45.0,129.72,129.69,2.47407012]
[1725883899236,45.0,129.72,129.67,20.0]
[1725883899422,45.0,129.72,129.68,2.47407012]
[1725883899629,45.0,129.72,129.69,2.47407012]
[1725883899830,45.0,129.72,129.7,2.47407012]
[1725883900141,45.0,129.72,129.67,20.0]
[1725883900533,45.0,129.72,129.68,2.47411516]
[1725883900841,45.0,129.72,129.69,2.47411516]
[1725883901034,45.0,129.72,129.7,2.47411516]
[1725883901238,45.0,129.72,129.67,20.0]
[1725883901437,45.0,129.72,129.68,2.47411605]
[1725883901620,45.0,129.72,129.69,2.47411605]
[1725883901947,45.0,129.72,129.7,2.47411605]
[1725883902149,45.0,129.72,129.67,20.0]
[1725883902445,45.0,129.72,129.68,2.47411516]
[1725883902742,45.0,129.72,129.69,2.47411516]
[1725883902943,45.0,129.72,129.7,2.47411516]
[1725883903137,45.0,129.72,129.63,0.8480476]
[1725883903341,45.0,129.72,129.66,13.72964011]
[1725883903746,45.0,129.72,129.67,2.47416258]
[1725883904268,45.0,129.72,129.66,13.72964011]
[1725883904539,45.0,129.72,129.68,2.47416139]
[1725883904847,45.0,129.72,129.69,2.47416139]
[1725883905021,45.0,129.72,129.66,13.72964011]
[1725883905427,45.0,129.72,129.63,20.8480476]
[1725883905841,21.2525,129.71,129.64,13.72964011]
[1725883906030,45.0,129.7,129.65,20.0]
[1725883906549,45.0,129.7,129.65,33.72964011]
[1725883906852,45.0,129.7,129.64,13.72964011]
[1725883907249,15.0265,129.69,129.63,0.8480476]
[1725883907448,51.0462,129.68,129.63,0.8480476]
[1725883907657,15.0265,129.67,129.63,0.8480476]
[1725883907957,45.0,129.66,129.63,0.8480476]
[1725883908545,6.2199,129.64,129.5,6.9718476]
[1725883908734,15.4779,129.63,129.5,6.9718476]
[1725883908927,15.4779,129.63,129.55,13.72964011]
[1725883908928,80.4779,129.63,129.55,13.72964011]
[1725883909129,60.4779,129.63,129.51,17.03024016]
[1725883909429,60.4779,129.63,129.56,13.72964011]
[1725883910432,60.4779,129.63,129.58,13.72964011]
[1725883911056,60.4779,129.63,129.51,17.03024016]
[1725883911351,60.4779,129.63,129.57,13.72964011]
[1725883911656,309.82448401,129.63,129.57,13.72964011]
[1725883914950,309.82448401,129.63,129.59,13.72964011]
[1725883915342,242.97158401,129.62,129.59,13.72964011]
[1725883917135,242.97158401,129.62,129.61,13.72964011]
[1725883920860,15.4779,129.63,129.61,13.72964011]
[1725883922259,140.99326164,129.64,129.61,13.72964011]
[1725883922433,140.99326164,129.64,129.56,6.5551]
[1725883922434,140.99326164,129.64,129.63,13.72964011]
[1725883925062,140.99326164,129.64,129.61,13.72964011]
[1725883927542,140.99326164,129.64,129.63,13.72964011]
[1725883929877,139.20126164,129.65,129.63,13.72964011]
[1725883930449,15.5692,129.66,129.63,13.72964011]
[1725883930651,15.5692,129.66,129.65,13.72964011]
[1725883930970,15.5692,129.66,129.56,6.5551]
[1725883930971,15.5692,129.66,129.64,13.72964011]
[1725883932569,15.5692,129.66,129.56,6.5551]
[1725883932744,159.01306735,129.65,129.54,12.4576]
[1725883932948,45.0,129.64,129.58,13.72964011]
[1725883933168,16.6171,129.63,129.58,13.72964011]
[1725883933476,174.98603972,129.62,129.58,13.72964011]
[1725883933647,123.61103972,129.61,129.58,13.72964011]
[1725883938175,123.61103972,129.61,129.5,0.8480476]
[1725883938176,21.3896,129.6,129.5,0.8480476]
[1725883938376,229.65924529,129.59,129.51,13.72964011]
[1725883938558,114.5314778,129.58,129.51,13.72964011]
[1725883938761,45.0,129.57,129.51,13.72964011]
[1725883938974,6.2083,129.56,129.5,0.8480476]
[1725883939159,160.4274778,129.55,129.5,0.8480476]
[1725883939367,130.6087778,129.54,129.5,0.8480476]
[1725883939555,160.4274778,129.53,129.5,0.8480476]
[1725883939875,115.4274778,129.53,129.5,14.57768771]
[1725883940069,115.4274778,129.53,129.5,0.8480476]
[1725883941455,115.4274778,129.53,129.51,34.43669664]
[1725883947281,115.4274778,129.53,129.5,5.14562004]
[1725883947488,115.4274778,129.53,129.51,54.43669664]
[1725883949373,100.67254466,129.56,129.51,54.43669664]
[1725883949579,45.0,129.55,129.51,54.43669664]
[1725883950981,45.0,129.55,129.51,20.0]
[1725883951281,59.00154466,129.54,129.5,0.8480476]
[1725883951482,59.00154466,129.54,129.5,5.14612774]
[1725883951665,59.00154466,129.54,129.51,20.0]
[1725883952578,59.00154466,129.54,129.5,20.8480476]
[1725883952958,59.00154466,129.54,129.5,0.8480476]
[1725883953169,45.0,129.53,129.5,5.14612774]
[1725883953371,45.0,129.53,129.5,0.8480476]
[1725883953572,45.0,129.53,129.5,5.14612774]
[1725883953766,59.00154466,129.54,129.5,0.8480476]
[1725883953971,59.00154466,129.54,129.5,5.14612774]
[1725883954332,59.00154466,129.54,129.5,0.8480476]
[1725883954483,59.00154466,129.54,129.5,5.14612774]
[1725883954665,59.00154466,129.54,129.5,0.8480476]
[1725883954863,59.00154466,129.54,129.5,5.14612774]
[1725883955092,59.00154466,129.54,129.5,0.8480476]
[1725883955263,59.00154466,129.54,129.5,5.14612774]
[1725883955585,59.00154466,129.54,129.5,0.8480476]
[1725883956089,59.00154466,129.54,129.5,5.1465549]
[1725883956270,59.00154466,129.54,129.5,0.8480476]
[1725883956474,45.0,129.53,129.5,0.8480476]
[1725883957583,23.23804874,129.52,129.5,0.8480476]
[1725883958201,15.3988,129.51,129.5,0.8480476]
[1725883958375,60.3988,129.51,129.5,0.8480476]
[1725883959494,15.3988,129.51,129.5,0.8480476]
[1725883960487,60.3988,129.51,129.5,0.8480476]
[1725883980696,15.3988,129.51,129.5,0.8480476]
[1725883981681,15.3988,129.51,129.4,19.10458736]
[1725883981682,15.3988,129.51,129.4,12.72859877]
[1725883981906,15.3988,129.51,129.46,13.77537289]
[1725883982211,15.3988,129.51,129.47,4.30042907]
[1725883982416,15.3988,129.51,129.48,4.30042907]
[1725883982710,15.3988,129.51,129.49,4.30042907]
[1725883982908,15.3988,129.51,129.46,13.77537289]
[1725883983105,15.3988,129.51,129.47,4.30043041]
[1725883983284,15.3988,129.51,129.46,13.77537289]
[1725883983285,15.3988,129.51,129.48,4.30043041]
[1725883983484,15.3988,129.51,129.46,13.77537289]
[1725883984201,18.91780448,129.5,129.46,13.77537289]
[1725883984411,18.91780448,129.5,129.45,13.77537289]
[1725883985292,18.91780448,129.5,129.43,13.77537289]
[1725883985499,45.0,129.49,129.44,20.0]
[1725883985700,45.0,129.49,129.45,13.77537289]
[1725883986918,45.0,129.49,129.44,20.0]
[1725883987213,45.0,129.49,129.44,13.77537289]
[1725883988987,18.91780448,129.5,129.46,13.77537289]
[1725883989500,15.3988,129.51,129.46,13.77537289]
[1725883992497,15.3988,129.51,129.41,20.0]
[1725883992713,45.0,129.5,129.41,20.0]
[1725883992897,45.0,129.5,129.44,13.77537289]
[1725883993290,70.07928766,129.5,129.4,12.72859877]
[1725883993495,70.07928766,129.5,129.42,13.77537289]
[1725883993706,51.0708,129.5,129.44,13.77537289]
[1725883993902,70.13812988,129.5,129.44,13.77537289]
[1725883994099,51.0708,129.5,129.44,13.77537289]
[1725883994513,51.0708,129.5,129.4,12.72859877]
[1725883994716,51.0708,129.5,129.41,20.0]
[1725883994920,51.0708,129.5,129.44,13.77537289]
[1725883995100,70.29394168,129.5,129.44,13.77537289]
[1725883997217,19.22314168,129.5,129.48,13.77537289]
[1725883998517,19.22314168,129.5,129.46,13.77537289]
[1725884000217,45.0,129.49,129.46,13.77537289]
[1725884001624,45.0,129.49,129.44,13.77537289]
[1725884002591,51.0335,129.49,129.44,13.77537289]
[1725884004419,6.0335,129.49,129.46,13.77537289]
[1725884004622,34.5153696,129.51,129.46,13.77537289]
[1725884004823,45.0,129.5,129.46,13.77537289]
[1725884006327,34.5153696,129.51,129.48,13.77537289]
[1725884008128,45.0,129.5,129.46,13.77537289]
[1725884008328,34.5153696,129.51,129.46,13.77537289]
[1725884008924,34.5153696,129.51,129.4,12.72859877]
[1725884009123,34.5153696,129.51,129.45,13.77537289]
[1725884009124,45.0,129.5,129.45,13.77537289]
[1725884012652,34.5153696,129.51,129.47,13.77537289]
[1725884012818,34.5153696,129.51,129.49,13.77537289]
[1725884014836,19.1165696,129.51,129.49,13.77537289]
[1725884015135,34.45925275,129.55,129.49,13.77537289]
[1725884015446,15.3549,129.55,129.52,13.77537289]
[1725884016142,15.3549,129.55,129.49,13.77537289]
[1725884016323,15.3549,129.55,129.51,13.77537289]
[1725884017531,45.0,129.54,129.51,13.77537289]
[1725884020768,45.0,129.54,129.49,13.77537289]
[1725884022751,45.0,129.54,129.51,13.77537289]
[1725884023048,15.3549,129.55,129.51,13.77537289]
[1725884028862,45.0,129.54,129.51,13.77537289]
[1725884036354,45.0,129.54,129.42,6.1427]
[1725884036561,45.0,129.54,129.47,13.77537289]
[1725884036733,45.0,129.54,129.49,13.77537289]
[1725884038061,52.7196,129.54,129.47,13.77537289]
[1725884038935,45.0,129.54,129.47,13.77537289]
[1725884040553,45.0,129.54,129.49,13.77537289]
[1725884043747,45.0,129.54,129.5,4.29992041]
[1725884043948,45.0,129.54,129.51,4.29992041]
[1725884044174,45.0,129.54,129.52,4.29992041]
[1725884044384,45.0,129.54,129.42,18.6003]
[1725884044385,45.0,129.54,129.47,13.77537289]
[1725884044666,45.0,129.54,129.48,4.29995045]
[1725884044954,45.0,129.54,129.49,4.29995045]
[1725884045156,45.0,129.54,129.5,4.29995045]
[1725884045361,45.0,129.54,129.51,4.29995045]
[1725884045562,45.0,129.54,129.52,4.29995045]
[1725884045747,45.0,129.54,129.47,13.77537289]
[1725884045946,45.0,129.54,129.48,4.29995045]
[1725884046152,45.0,129.54,129.49,4.29995045]
[1725884046353,45.0,129.54,129.47,13.77537289]
[1725884046354,45.0,129.54,129.5,4.29995045]
[1725884046558,45.0,129.54,129.51,4.29995045]
[1725884046765,45.0,129.54,129.47,13.77537289]
[1725884047578,52.7196,129.54,129.47,13.77537289]
[1725884048950,22.5154,129.53,129.47,13.77537289]
[1725884049151,45.0,129.52,129.47,13.77537289]
[1725884050155,45.0,129.52,129.42,18.6003]
[1725884050359,45.0,129.52,129.46,13.77537289]
[1725884051272,52.7209,129.52,129.46,13.77537289]
[1725884051487,15.9847,129.51,129.46,13.77537289]
[1725884051688,45.0,129.5,129.46,13.77537289]
[1725884052274,45.0,129.5,129.39,27.10374309]
[1725884052454,45.0,129.5,129.45,13.77537289]
[1725884063967,45.0,129.5,129.46,13.77537289]
[1725884064165,15.9847,129.51,129.47,13.77537289]
[1725884064690,15.9847,129.51,129.49,13.77537289]
[1725884067103,6.0615,129.53,129.49,13.77537289]
[1725884068974,45.0,129.52,129.49,13.77537289]
[1725884070086,6.0615,129.53,129.49,13.77537289]
[1725884070591,6.0615,129.53,129.51,13.77537289]
[1725884070797,16.0244,129.54,129.51,13.77537289]
[1725884071600,16.0244,129.54,129.53,13.77537289]
[1725884074483,6.3679,129.56,129.53,13.77537289]
[1725884075490,15.5776,129.57,129.55,13.77537289]
[1725884085287,15.5776,129.57,129.48,2.47682799]
[1725884085487,15.5776,129.57,129.55,13.77537289]
[1725884088013,28.31174535,129.59,129.55,13.77537289]
[1725884088185,45.0,129.58,129.55,13.77537289]
[1725884088390,28.31174535,129.59,129.55,13.77537289]
[1725884091918,45.0,129.58,129.5,18.9004]
[1725884092086,28.31174535,129.59,129.55,13.77537289]
[1725884095821,28.31174535,129.59,129.51,20.0]
[1725884095999,28.31174535,129.59,129.54,13.77537289]
[1725884096321,28.31174535,129.59,129.55,13.77537289]
[1725884096492,45.0,129.58,129.55,13.77537289]
[1725884096987,45.0,129.58,129.51,20.0]
[1725884097204,45.0,129.58,129.55,13.77537289]
[1725884098817,28.31174535,129.59,129.55,13.77537289]
[1725884099020,21.77904535,129.59,129.55,13.77537289]
[1725884100609,21.77904535,129.59,129.57,13.77537289]
[1725884102620,21.77904535,129.59,129.54,19.0085]
[1725884102621,21.77904535,129.59,129.56,13.77537289]
[1725884102802,21.77904535,129.59,129.54,19.0085]
[1725884103002,21.77904535,129.59,129.58,13.77537289]
[1725884107737,16.554,129.65,129.58,13.77537289]
[1725884107920,16.554,129.65,129.61,13.77537289]
[1725884109825,16.554,129.65,129.54,12.4576]
[1725884110132,43.83429788,129.65,129.59,13.77537289]
[1725884110334,45.0,129.64,129.59,13.77537289]
[1725884111439,45.0,129.64,129.61,13.77537289]
[1725884111731,43.83429788,129.65,129.61,13.77537289]
[1725884116216,16.554,129.65,129.61,13.77537289]
[1725884121144,30.22502222,129.68,129.63,13.77537289]
[1725884121441,45.0,129.67,129.63,13.77537289]
[1725884122307,30.22502222,129.68,129.63,13.77537289]
[1725884122516,30.22502222,129.68,129.65,13.77537289]
[1725884124835,16.3136,129.69,129.65,13.77537289]
[1725884125043,45.0,129.68,129.65,13.77537289]
[1725884126739,45.0,129.68,129.59,18.4673]
[1725884126957,45.0,129.68,129.64,13.77537289]
[1725884128253,45.0,129.68,129.59,18.4673]
[1725884128459,45.0,129.68,129.63,13.77537289]
[1725884132639,95.0,129.68,129.59,12.4576]
[1725884132860,34.44895671,129.67,129.56,18.5167]
[1725884133056,45.0,129.66,129.6,13.77537289]
[1725884137573,16.6618,129.65,129.6,13.77537289]
[1725884137745,45.0,129.64,129.6,13.77537289]
[1725884139778,45.0,129.64,129.55,2.47581151]
[1725884140062,45.0,129.64,129.56,13.77537289]
[1725884140063,102.7141,129.64,129.56,13.77537289]
[1725884140266,6.4637,129.63,129.56,13.77537289]
[1725884140440,15.4307,129.61,129.54,13.77537289]
[1725884140643,45.0,129.6,129.52,12.4576]
[1725884140975,45.0,129.6,129.52,13.77537289]
[1725884141270,6.4637,129.59,129.52,13.77537289]
[1725884141565,45.0,129.58,129.52,13.77537289]
[1725884143654,45.0,129.58,129.54,13.77537289]
[1725884145146,45.0,129.58,129.52,13.77537289]
[1725884146070,45.0,129.58,129.48,14.93456447]
[1725884146297,15.8419,129.57,129.5,13.77537289]
[1725884146461,45.0,129.56,129.5,13.77537289]
[1725884151457,6.1645,129.55,129.5,13.77537289]
[1725884151650,45.0,129.54,129.5,13.77537289]
[1725884151851,45.0,129.54,129.45,12.4576]
[1725884151852,45.0,129.54,129.49,13.77537289]
[1725884152052,16.5071,129.53,129.47,13.77537289]
[1725884152271,45.0,129.52,129.47,13.77537289]
[1725884153052,16.5071,129.53,129.49,13.77537289]
[1725884154281,16.5071,129.53,129.45,12.4576]
[1725884154481,45.0,129.52,129.49,13.77537289]
[1725884155768,16.5071,129.53,129.49,13.77537289]
[1725884160288,16.5071,129.53,129.51,13.77537289]
[1725884161392,16.5071,129.53,129.49,13.77537289]
[1725884161608,45.0,129.52,129.49,13.77537289]
[1725884164395,16.5071,129.53,129.49,13.77537289]
[1725884172586,6.1645,129.55,129.46,4.29941971]
[1725884172587,6.1645,129.55,129.51,13.77537289]
[1725884172981,63.37311717,129.57,129.51,13.77537289]
[1725884173179,45.0,129.56,129.51,13.77537289]
[1725884178480,70.97572629,129.56,129.48,4.29941971]
[1725884178680,70.97572629,129.56,129.49,18.0747926]
[1725884178912,120.97572629,129.56,129.5,4.29941971]
[1725884179211,120.97572629,129.56,129.5,4.29942452]
[1725884179389,120.97572629,129.56,129.5,4.29940639]
[1725884180309,25.92189862,129.55,129.49,13.77537289]
[1725884180500,45.0,129.54,129.5,4.29940812]
[1725884180694,45.0,129.54,129.49,13.77537289]
[1725884181011,45.0,129.54,129.5,4.29940836]
[1725884181502,45.0,129.54,129.51,4.29940836]
[1725884181804,45.0,129.54,129.49,13.77537289]
[1725884182001,45.0,129.54,129.5,4.29940911]
[1725884182302,45.0,129.54,129.51,4.29940911]
[1725884182489,45.0,129.54,129.49,13.77537289]
[1725884182683,45.0,129.54,129.5,4.29940911]
[1725884182904,45.0,129.54,129.51,4.29940911]
[1725884183211,45.0,129.54,129.52,4.29940762]
[1725884183509,45.0,129.54,129.49,13.77537289]
[1725884183709,45.0,129.54,129.5,4.29940687]
[1725884183912,45.0,129.54,129.51,4.29940687]
[1725884184090,45.0,129.54,129.52,4.29940687]
[1725884184292,16.2425,129.53,129.46,20.0]
[1725884184609,45.0,129.52,129.47,18.07540931]
[1725884184913,45.0,129.52,129.48,4.30008938]
[1725884185116,45.0,129.52,129.49,4.30008938]
[1725884185302,45.0,129.52,129.5,4.30008938]
[1725884185494,45.0,129.52,129.51,4.30008938]
[1725884190820,45.0,129.52,129.51,4.30026028]
[1725884194016,45.0,129.52,129.49,13.77537289]
[1725884194221,45.0,129.52,129.5,4.30017727]
[1725884194421,45.0,129.52,129.51,4.30017727]
[1725884197621,45.0,129.52,129.47,13.77537289]
[1725884197799,45.0,129.52,129.51,4.30026051]
[1725884198000,16.2425,129.53,129.51,4.30026051]
[1725884198200,16.2425,129.53,129.52,4.30026051]
[1725884199336,61.2425,129.53,129.52,4.30026051]